lending/lending_fUSD_20240410
["ID","MTS","AMOUNT","RATE_DAILY","PERIOD"]
[322083834,1712753452276,-500.0,0.00054,7]
[322083835,1712753452285,-500.0,0.00054,7]
[322083836,1712753452295,-500.0,0.00054,7]
[322083837,1712753452304,-500.0,0.00054,7]
[322083838,1712753452315,-500.0,0.00054,7]
[322083839,1712753452324,-500.0,0.00054,7]
[322083840,1712753452338,-500.0,0.00054,7]
[322083841,1712753452347,-500.0,0.00054,7]
[322083842,1712753452358,-500.0,0.00054,7]
[322083843,1712753452368,-500.0,0.00054,7]
[322083844,1712753452380,-500.0,0.00054,7]
[322083845,1712753452390,-500.0,0.00054,7]
[322083846,1712753452400,-500.0,0.00054,7]
[322083847,1712753452411,-500.0,0.00054,7]
[322083848,1712753452421,-500.0,0.00054,7]
[322083849,1712753452431,-500.0,0.00054,7]
[322083850,1712753452441,-500.0,0.00054,7]
[322083851,1712753452450,-500.0,0.00054,7]
[322083852,1712753452459,-500.0,0.00054,7]
[322083853,1712753452469,-500.0,0.00054,7]
[322083854,1712753452478,-500.0,0.00054,7]
[322083855,1712753452487,-500.0,0.00054,7]
[322083856,1712753452497,-500.0,0.00054,7]
[322083857,1712753452506,-500.0,0.00054,7]
[322083858,1712753452515,-500.0,0.00054,7]
[322083859,1712753452524,-352.83,0.00054,7]
[322083860,1712753452533,-500.0,0.00054,7]
[322083861,1712753452542,-500.0,0.00054,7]
[322083862,1712753452552,-500.0,0.00054,7]
[322083863,1712753452561,-500.0,0.00054,7]
[322083864,1712753452570,-500.0,0.00054,7]
[322083865,1712753452583,-500.0,0.00054,7]
[322083866,1712753452593,-500.0,0.00054,7]
[322083867,1712753452602,-500.0,0.00054,7]
[322083868,1712753452612,-500.0,0.00054,7]
[322083869,1712753452621,-500.0,0.00054,7]
[322083870,1712753452631,-500.0,0.00054,7]
[322083871,1712753452640,-500.0,0.00054,7]
[322083872,1712753452649,-500.0,0.00054,7]
[322083873,1712753452658,-500.0,0.00054,7]
[322083874,1712753452668,-555.89,0.00054,7]
[322083875,1712753452677,-500.0,0.00054,7]
[322083876,1712753452686,-500.0,0.00054,7]
[322083877,1712753452696,-500.0,0.00054,7]
[322083878,1712753452705,-500.0,0.00054,7]
[322083879,1712753452715,-500.0,0.00054,7]
[322083880,1712753452725,-500.0,0.00054,7]
[322083881,1712753452734,-500.0,0.00054,7]
[322083882,1712753452744,-500.0,0.00054,7]
[322083883,1712753452753,-500.0,0.00054,7]
[322083884,1712753452762,-320.0,0.00054,102]
[322083885,1712753452771,-5000.0,0.00054004,20]
[322083886,1712753452781,-389.83926516,0.0005401,40]
[322083887,1712753452790,-5000.0,0.00054012,20]
[322083888,1712753452800,-5000.0,0.00054016,20]
[322083889,1712753452809,-5000.0,0.00054025,20]
[322083890,1712753452818,-2888.06,0.0005403,20]
[322083891,1712753452833,-5000.0,0.00054037,20]
[322083892,1712753452843,-5000.0,0.00054052,20]
[322083893,1712753452852,-5000.0,0.00054073,20]
[322083894,1712753452864,-5000.0,0.00054103,20]
[322083895,1712753452874,-5000.0,0.0005411,20]
[322083896,1712753452883,-5000.0,0.00054111,20]
[322083897,1712753452893,-5000.0,0.0005415,20]
[322083898,1712753452902,-5000.0,0.00054169,20]
[322083899,1712753452912,-1402.45989186,0.00054171,31]
[322083900,1712753452921,-5000.0,0.00054183,20]
[322083901,1712753452930,-5000.0,0.00054185,20]
[322083902,1712753452940,-5000.0,0.00054195,20]
[322083903,1712753452951,-5000.0,0.00054219,20]
[322083904,1712753452961,-5000.0,0.00054221,20]
[322083905,1712753452971,-5000.0,0.00054223,20]
[322083906,1712753452980,-5000.0,0.00054226,20]
[322083907,1712753452990,-5000.0,0.00054232,20]
[322083908,1712753453000,-5000.0,0.00054242,20]
[322083909,1712753453010,-5000.0,0.00054249,20]
[322083910,1712753453018,-5000.0,0.00054267,20]
[322083911,1712753453028,-5000.0,0.00054289,20]
[322083912,1712753453038,-4623.26,0.0005429,20]
[322083913,1712753453047,-5000.0,0.00054292,20]
[322083914,1712753453059,-5000.0,0.00054296,20]
[322083915,1712753453069,-2500.0,0.000543,20]
[322083916,1712753453081,-5000.0,0.00054301,20]
[322083917,1712753453090,-5000.0,0.00054303,20]
[322083918,1712753453100,-5000.0,0.00054327,20]
[322083919,1712753453108,-5000.0,0.00054341,20]
[322083920,1712753453118,-5000.0,0.00054353,20]
[322083921,1712753453127,-5000.0,0.00054354,20]
[322083922,1712753453136,-3113.36,0.00054397,20]
[322083923,1712753453146,-5000.0,0.00054401,20]
[322083924,1712753453155,-5000.0,0.00054408,20]
[322083925,1712753453165,-2500.0,0.00054414,20]
[322083926,1712753453174,-4574.46,0.00054425,20]
[322083927,1712753453184,-5000.0,0.00054428,20]
[322083928,1712753453193,-5000.0,0.00054433,20]
[322083929,1712753453202,-13000.0,0.0005444,20]
[322083930,1712753453212,-5000.0,0.00054445,20]
[322083931,1712753453221,-5000.0,0.00054447,20]
[322083932,1712753453230,-5000.0,0.00054449,20]
[322083933,1712753453244,-163.45,0.00054466,120]
[322083934,1712753453253,-26672.25340798,0.000545,120]
[322083935,1712753453262,-320.0,0.000545,103]
[322083936,1712753453272,-5000.0,0.00054502,20]
[322083937,1712753453281,-5000.0,0.00054521,20]
[322083938,1712753453290,-2500.0,0.00054524,20]
[322083939,1712753453299,-5000.0,0.00054536,20]
[322083940,1712753453308,-5000.0,0.00054539,20]
[322083941,1712753453317,-4308.81,0.00054546,20]
[322083942,1712753453326,-5000.0,0.00054547,20]
[322083943,1712753453337,-169.0,0.00054548,28]
[322083944,1712753453347,-5000.0,0.00054559,20]
[322083945,1712753453356,-2500.0,0.00054568,20]
[322083946,1712753453365,-5000.0,0.00054571,20]
[322083947,1712753453374,-1314.33,0.00054586,20]
[322083948,1712753453383,-5000.0,0.00054618,20]
[322083949,1712753453392,-2500.0,0.00054635,20]
[322083950,1712753453401,-5000.0,0.00054639,20]
[322083951,1712753453410,-5000.0,0.00054642,20]
[322083952,1712753453419,-5000.0,0.00054647,20]
[322083953,1712753453429,-5000.0,0.0005466,20]
[322083954,1712753453438,-5000.0,0.00054681,20]
[322083955,1712753453447,-5000.0,0.0005469,20]
[322083956,1712753453456,-5000.0,0.00054695,20]
[322083957,1712753453466,-944.55066079,0.000547,120]
[322083958,1712753453475,-5000.0,0.00054702,20]
[322083959,1712753453484,-1535.89,0.00054719,20]
[322083960,1712753453493,-2000.0,0.00054725,5]
[322083961,1712753453503,-2000.0,0.00054725,5]
[322083962,1712753453512,-5000.0,0.00054742,20]
[322083963,1712753453521,-5000.0,0.00054754,20]
[322083964,1712753453529,-5000.0,0.00054756,20]
[322083965,1712753453538,-5000.0,0.00054764,20]
[322083966,1712753453547,-2572.97,0.00054777,20]
[322083967,1712753453556,-500.0,0.00054794,120]
[322083968,1712753453565,-189.90512194,0.00054794,120]
[322083969,1712753453575,-500.0,0.00054794,120]
[322083970,1712753453586,-511.14531681,0.00054794,120]
[322083971,1712753453595,-500.0,0.00054794,120]
[322083972,1712753453604,-517.98336886,0.00054794,120]
[322083973,1712753453613,-514.05075388,0.00054794,120]
[322083974,1712753453623,-505.14346611,0.00054794,120]
[322083975,1712753453632,-500.0,0.00054794,120]
[322083976,1712753453642,-500.0,0.00054794,120]
[322083977,1712753453651,-500.0,0.00054794,120]
[322083978,1712753453662,-500.0,0.00054794,120]
[322083979,1712753453671,-500.0,0.00054794,120]
[322083980,1712753453680,-505.50966123,0.00054794,120]
[322083981,1712753453690,-511.83241684,0.00054794,120]
[322083982,1712753453699,-500.0,0.00054794,120]
[322083983,1712753453709,-500.0,0.00054794,120]
[322083984,1712753453718,-500.0,0.00054794,120]
[322083985,1712753453727,-500.0,0.00054794,120]
[322083986,1712753453736,-500.0,0.00054794,120]
[322083987,1712753453746,-500.0,0.00054794,120]
[322083988,1712753453755,-500.0,0.00054794,120]
[322083989,1712753453766,-500.0,0.00054794,120]
[322083990,1712753453776,-500.0,0.00054794,120]
[322083991,1712753453786,-281.27526155,0.00054794,120]
[322083992,1712753453796,-199.93832178,0.00054794,120]
[322083993,1712753453805,-500.0,0.00054794,120]
[322083994,1712753453815,-313.9417369,0.00054794,120]
[322083995,1712753453825,-500.0,0.00054794,120]
[322083996,1712753453841,-155.42015962,0.00054794,120]
[322083997,1712753453850,-500.0,0.00054794,120]
[322083998,1712753453860,-500.0,0.00054794,120]
[322083999,1712753453870,-500.0,0.00054794,120]
[322084000,1712753453879,-550.17679038,0.00054794,120]
[322084001,1712753453889,-500.0,0.00054794,120]
[322084002,1712753453899,-500.0,0.00054794,120]
[322084003,1712753453909,-310.0,0.00054794,120]
[322084004,1712753453920,-510.96582619,0.00054794,120]
[322084005,1712753453930,-517.64162019,0.00054794,120]
[322084006,1712753453940,-500.0,0.00054794,120]
[322084007,1712753453949,-507.85998274,0.00054794,120]
[322084008,1712753453959,-509.90560828,0.00054794,120]
[322084009,1712753453969,-513.65021235,0.00054794,120]
[322084010,1712753453979,-500.0,0.00054794,120]
[322084011,1712753453988,-500.0,0.00054794,120]
[322084012,1712753453998,-500.0,0.00054794,120]
[322084013,1712753454008,-500.0,0.00054794,120]
[322084014,1712753454018,-500.0,0.00054794,120]
[322084015,1712753454027,-500.0,0.00054794,120]
[322084016,1712753454037,-500.0,0.00054794,120]
[322084017,1712753454047,-500.0,0.00054794,120]
[322084018,1712753454056,-500.0,0.00054794,120]
[322084019,1712753454065,-500.0,0.00054794,120]
[322084020,1712753454075,-575.2375584,0.00054794,120]
[322084021,1712753454088,-500.0,0.00054794,120]
[322084022,1712753454097,-500.0,0.00054794,120]
[322084023,1712753454106,-500.0,0.00054794,120]
[322084024,1712753454116,-500.0,0.00054794,120]
[322084025,1712753454126,-500.0,0.00054794,120]
[322084026,1712753454136,-500.0,0.00054794,120]
[322084027,1712753454145,-500.0,0.00054794,120]
[322084028,1712753454155,-511.23540113,0.00054794,120]
[322084029,1712753454165,-367.20396304,0.00054794,120]
[322084030,1712753454174,-207.50181216,0.00054794,120]
[322084031,1712753454184,-500.0,0.00054794,120]
[322084032,1712753454193,-500.0,0.00054794,120]
[322084033,1712753454325,-500.0,0.00054794,120]
[322084034,1712753454341,-502.1119411,0.00054794,120]
[322084035,1712753454350,-510.46371632,0.00054794,120]
[322084036,1712753454360,-502.60157356,0.00054794,120]
[322084037,1712753454370,-500.0,0.00054794,120]
[322084038,1712753454380,-500.0,0.00054794,120]
[322084039,1712753454390,-500.0,0.00054794,120]
[322084040,1712753454399,-500.0,0.00054794,120]
[322084041,1712753454409,-299.25403775,0.00054794,120]
[322084042,1712753454418,-500.0,0.00054794,120]
[322084043,1712753454428,-444.90220092,0.00054794,120]
[322084044,1712753454437,-191.18877027,0.00054794,120]
[322084045,1712753454447,-500.0,0.00054794,120]
[322084046,1712753454456,-500.0,0.00054794,120]
[322084047,1712753454466,-502.8072098,0.00054794,120]
[322084048,1712753454475,-500.0,0.00054794,120]
[322084049,1712753454485,-500.0,0.00054794,120]
[322084050,1712753454494,-500.0,0.00054794,120]
[322084051,1712753454504,-500.0,0.00054794,120]
[322084052,1712753454513,-500.0,0.00054794,120]
[322084053,1712753454522,-500.0,0.00054794,120]
[322084054,1712753454532,-500.0,0.00054794,120]
[322084055,1712753454541,-500.0,0.00054794,120]
[322084056,1712753454551,-500.0,0.00054794,120]
[322084057,1712753454560,-500.0,0.00054794,120]
[322084058,1712753454570,-500.0,0.00054794,120]
[322084059,1712753454582,-500.0,0.00054794,120]
[322084060,1712753454592,-500.0,0.00054794,120]
[322084061,1712753454601,-188.73258327,0.00054794,120]
[322084062,1712753454610,-500.0,0.00054794,120]
[322084063,1712753454619,-500.0,0.00054794,120]
[322084064,1712753454628,-500.0,0.00054794,120]
[322084065,1712753454638,-500.0,0.00054794,120]
[322084066,1712753454647,-500.0,0.00054794,120]
[322084067,1712753454656,-500.0,0.00054794,120]
[322084068,1712753454667,-500.0,0.00054794,120]
[322084069,1712753454676,-500.0,0.00054794,120]
[322084070,1712753454686,-500.0,0.00054794,120]
[322084071,1712753454695,-237.05220001,0.00054794,120]
[322084072,1712753454704,-500.0,0.00054794,120]
[322084073,1712753454714,-155.0,0.00054794,30]
[322084074,1712753454723,-500.0,0.00054794,120]
[322084075,1712753454734,-500.0,0.00054794,120]
[322084076,1712753454743,-500.0,0.00054794,120]
[322084077,1712753454752,-500.0,0.00054794,120]
[322084078,1712753454762,-500.0,0.00054794,120]
[322084079,1712753454771,-500.0,0.00054794,120]
[322084080,1712753454781,-592.28,0.00054794,120]
[322084081,1712753454790,-500.0,0.00054794,120]
[322084082,1712753454800,-521.74391611,0.00054794,120]
[322084083,1712753454809,-500.0,0.00054794,120]
[322084084,1712753454818,-500.0,0.00054794,120]
[322084085,1712753454827,-500.0,0.00054794,120]
[322084086,1712753454841,-500.0,0.00054794,120]
[322084087,1712753454852,-500.0,0.00054794,120]
[322084088,1712753454862,-578.75008031,0.00054794,120]
[322084089,1712753454872,-500.0,0.00054794,120]
[322084090,1712753454882,-500.0,0.00054794,120]
[322084091,1712753454892,-500.0,0.00054794,120]
[322084092,1712753454902,-500.0,0.00054794,120]
[322084093,1712753454911,-500.0,0.00054794,120]
[322084094,1712753454921,-500.0,0.00054794,120]
[322084095,1712753454931,-539.24964541,0.00054794,120]
[322084096,1712753454941,-500.0,0.00054794,120]
[322084097,1712753454950,-500.0,0.00054794,120]
[322084098,1712753454959,-500.0,0.00054794,120]
[322084099,1712753454969,-500.0,0.00054794,120]
[322084100,1712753454978,-500.0,0.00054794,120]
[322084101,1712753454987,-607.01504093,0.00054794,120]
[322084102,1712753454997,-500.0,0.00054794,120]
[322084103,1712753455006,-500.0,0.00054794,120]
[322084104,1712753455015,-500.0,0.00054794,120]
[322084105,1712753455025,-500.0,0.00054794,120]
[322084106,1712753455034,-500.0,0.00054794,120]
[322084107,1712753455043,-500.0,0.00054794,30]
[322084108,1712753455053,-500.0,0.00054794,120]
[322084109,1712753455062,-500.0,0.00054794,120]
[322084110,1712753455071,-500.0,0.00054794,120]
[322084111,1712753455081,-500.0,0.00054794,120]
[322084112,1712753455091,-500.0,0.00054794,120]
[322084113,1712753455100,-500.0,0.00054794,120]
[322084114,1712753455110,-509.97395168,0.00054794,120]
[322084115,1712753455119,-500.0,0.00054794,120]
[322084116,1712753455128,-500.0,0.00054794,120]
[322084117,1712753455137,-500.0,0.00054794,120]
[322084118,1712753455146,-500.0,0.00054794,120]
[322084119,1712753455155,-500.0,0.00054794,120]
[322084120,1712753455165,-500.0,0.00054794,120]
[322084121,1712753455174,-500.0,0.00054794,120]
[322084122,1712753455184,-500.0,0.00054794,120]
[322084123,1712753455193,-500.0,0.00054794,120]
[322084124,1712753455202,-500.0,0.00054794,120]
[322084125,1712753455212,-514.12104631,0.00054794,120]
[322084126,1712753455220,-500.0,0.00054794,120]
[322084127,1712753455230,-568.51,0.00054794,120]
[322084128,1712753455239,-500.0,0.00054794,120]
[322084129,1712753455248,-500.0,0.00054794,120]
[322084130,1712753455257,-500.0,0.00054794,120]
[322084131,1712753455267,-500.0,0.00054794,120]
[322084132,1712753455276,-500.0,0.00054794,120]
[322084133,1712753455285,-500.0,0.00054794,120]
[322084134,1712753455294,-500.0,0.00054794,120]
[322084135,1712753455303,-500.0,0.00054794,60]
[322084136,1712753455313,-500.0,0.00054794,120]
[322084137,1712753455322,-500.0,0.00054794,120]
[322084138,1712753455334,-500.0,0.00054794,120]
[322084139,1712753455344,-500.0,0.00054794,120]
[322084140,1712753455353,-511.65292656,0.00054794,120]
[322084141,1712753455362,-514.27624587,0.00054794,120]
[322084142,1712753455372,-500.0,0.00054794,120]
[322084143,1712753455381,-500.0,0.00054794,120]
[322084144,1712753455390,-500.0,0.00054794,120]
[322084145,1712753455400,-500.0,0.00054794,120]
[322084146,1712753455409,-500.0,0.00054794,120]
[322084147,1712753455418,-500.0,0.00054794,120]
[322084148,1712753455428,-500.0,0.00054794,120]
[322084149,1712753455437,-500.0,0.00054794,120]
[322084150,1712753455447,-512.45510417,0.00054794,120]
[322084151,1712753455457,-500.0,0.00054794,120]
[322084152,1712753455467,-500.0,0.00054794,120]
[322084153,1712753455476,-509.52349393,0.00054794,120]
[322084154,1712753455486,-500.0,0.00054794,120]
[322084155,1712753455495,-500.0,0.00054794,120]
[322084156,1712753455504,-500.0,0.00054794,120]
[322084157,1712753455514,-500.0,0.00054794,120]
[322084158,1712753455523,-500.0,0.00054794,120]
[322084159,1712753455532,-504.30259316,0.00054794,120]
[322084160,1712753455542,-500.0,0.00054794,120]
[322084161,1712753455552,-500.0,0.00054794,120]
[322084162,1712753455561,-503.92891939,0.00054794,120]
[322084163,1712753455571,-500.0,0.00054794,120]
[322084164,1712753455582,-500.0,0.00054794,120]
[322084165,1712753455591,-500.0,0.00054794,120]
[322084166,1712753455600,-305.91282686,0.00054794,120]
[322084167,1712753455610,-500.0,0.00054794,120]
[322084168,1712753455619,-500.0,0.00054794,120]
[322084169,1712753455628,-205.39116824,0.00054794,120]
[322084170,1712753455637,-500.0,0.00054794,120]
[322084171,1712753455646,-500.0,0.00054794,120]
[322084172,1712753455655,-500.0,0.00054794,120]
[322084173,1712753455665,-299.55050028,0.00054794,10]
[322084174,1712753455674,-500.0,0.00054794,120]
[322084175,1712753455684,-500.0,0.00054794,120]
[322084176,1712753455694,-500.0,0.00054794,120]
[322084177,1712753455703,-500.0,0.00054794,120]
[322084178,1712753455712,-500.0,0.00054794,120]
[322084179,1712753455722,-500.0,0.00054794,120]
[322084180,1712753455731,-500.0,0.00054794,120]
[322084181,1712753455740,-500.0,0.00054794,120]
[322084182,1712753455749,-500.0,0.00054794,120]
[322084183,1712753455759,-500.0,0.00054794,120]
[322084184,1712753455769,-500.0,0.00054794,120]
[322084185,1712753455778,-500.0,0.00054794,120]
[322084186,1712753455788,-500.0,0.00054794,120]
[322084187,1712753455797,-150.0,0.00054794,120]
[322084188,1712753455807,-500.0,0.00054794,120]
[322084189,1712753455818,-500.0,0.00054794,120]
[322084190,1712753455828,-500.0,0.00054794,120]
[322084191,1712753455844,-500.0,0.00054794,120]
[322084192,1712753455856,-500.0,0.00054794,120]
[322084193,1712753455866,-500.0,0.00054794,120]
[322084194,1712753455875,-500.0,0.00054794,120]
[322084195,1712753455886,-500.0,0.00054794,120]
[322084196,1712753455896,-500.0,0.00054794,120]
[322084197,1712753455905,-500.0,0.00054794,120]
[322084198,1712753455915,-500.0,0.00054794,120]
[322084199,1712753455924,-500.0,0.00054794,120]
[322084200,1712753455935,-500.0,0.00054794,120]
[322084201,1712753455946,-500.0,0.00054794,120]
[322084202,1712753455955,-500.0,0.00054794,120]
[322084203,1712753455965,-500.0,0.00054794,120]
[322084204,1712753455975,-500.0,0.00054794,120]
[322084205,1712753455985,-500.0,0.00054794,3]
[322084206,1712753455995,-500.0,0.00054794,120]
[322084207,1712753456004,-500.0,0.00054794,120]
[322084208,1712753456014,-612.98642354,0.00054794,120]
[322084209,1712753456023,-500.0,0.00054794,120]
[322084210,1712753456033,-500.0,0.00054794,120]
[322084211,1712753456043,-500.0,0.00054794,120]
[322084212,1712753456052,-500.0,0.00054794,120]
[322084213,1712753456062,-500.0,0.00054794,120]
[322084214,1712753456071,-500.0,0.00054794,120]
[322084215,1712753456083,-500.0,0.00054794,120]
[322084216,1712753456092,-500.0,0.00054794,120]
[322084217,1712753456101,-631.61,0.00054794,120]
[322084218,1712753456111,-500.0,0.00054794,120]
[322084219,1712753456120,-500.0,0.00054794,120]
[322084220,1712753456129,-500.0,0.00054794,120]
[322084221,1712753456140,-500.0,0.00054794,120]
[322084222,1712753456150,-500.0,0.00054794,120]
[322084223,1712753456160,-500.0,0.00054794,120]
[322084224,1712753456170,-500.0,0.00054794,120]
[322084225,1712753456179,-500.0,0.00054794,120]
[322084226,1712753456188,-500.0,0.00054794,120]
[322084227,1712753456197,-500.0,0.00054794,120]
[322084228,1712753456207,-279.12165971,0.00054794,120]
[322084229,1712753456216,-500.0,0.00054794,120]
[322084230,1712753456226,-500.0,0.00054794,120]
[322084231,1712753456235,-536.85010507,0.00054794,4]
[322084232,1712753456245,-500.0,0.00054794,120]
[322084233,1712753456254,-500.0,0.00054794,120]
[322084234,1712753456263,-314.40946091,0.00054794,120]
[322084235,1712753456272,-500.0,0.00054794,120]
[322084236,1712753456282,-500.0,0.00054794,120]
[322084237,1712753456292,-545.71877454,0.00054794,120]
[322084238,1712753456301,-500.0,0.00054794,120]
[322084239,1712753456309,-500.0,0.00054794,120]
[322084240,1712753456319,-500.0,0.00054794,120]
[322084241,1712753456328,-500.0,0.00054794,120]
[322084242,1712753456341,-500.0,0.00054794,120]
[322084243,1712753456350,-500.0,0.00054794,120]
[322084244,1712753456360,-500.0,0.00054794,120]
[322084245,1712753456370,-500.0,0.00054794,120]
[322084246,1712753456379,-576.86,0.00054794,120]
[322084247,1712753456389,-500.0,0.00054794,120]
[322084248,1712753456398,-500.0,0.00054794,120]
[322084249,1712753456407,-500.0,0.00054794,120]
[322084250,1712753456418,-259.85940966,0.00054794,120]
[322084251,1712753456427,-500.0,0.00054794,120]
[322084252,1712753456438,-500.0,0.00054794,120]
[322084253,1712753456447,-500.0,0.00054794,120]
[322084254,1712753456457,-515.87886212,0.00054794,120]
[322084255,1712753456467,-210.57910036,0.00054794,120]
[322084256,1712753456477,-500.0,0.00054794,120]
[322084257,1712753456486,-500.0,0.00054794,120]
[322084258,1712753456495,-500.0,0.00054794,120]
[322084259,1712753456504,-500.0,0.00054794,120]
[322084260,1712753456515,-500.0,0.00054794,120]
[322084261,1712753456524,-500.0,0.00054794,120]
[322084262,1712753456533,-500.0,0.00054794,120]
[322084263,1712753456543,-500.0,0.00054794,120]
[322084264,1712753456553,-500.0,0.00054794,120]
[322084265,1712753456563,-500.0,0.00054794,120]
[322084266,1712753456572,-500.0,0.00054794,120]
[322084267,1712753456586,-500.0,0.00054794,120]
[322084268,1712753456596,-500.0,0.00054794,120]
[322084269,1712753456605,-500.0,0.00054794,120]
[322084270,1712753456615,-500.0,0.00054794,120]
[322084271,1712753456625,-500.0,0.00054794,120]
[322084272,1712753456635,-500.0,0.00054794,120]
[322084273,1712753456645,-500.0,0.00054794,120]
[322084274,1712753456655,-514.18,0.00054794,120]
[322084275,1712753456664,-500.0,0.00054794,120]
[322084276,1712753456674,-500.0,0.00054794,120]
[322084277,1712753456684,-500.0,0.00054794,120]
[322084278,1712753456694,-500.0,0.00054794,120]
[322084279,1712753456703,-500.0,0.00054794,120]
[322084280,1712753456713,-500.0,0.00054794,120]
[322084281,1712753456722,-500.0,0.00054794,7]
[322084282,1712753456731,-500.0,0.00054794,120]
[322084283,1712753456740,-500.0,0.00054794,120]
[322084284,1712753456750,-500.0,0.00054794,120]
[322084285,1712753456759,-500.0,0.00054794,120]
[322084286,1712753456769,-500.0,0.00054794,120]
[322084287,1712753456779,-500.0,0.00054794,120]
[322084288,1712753456788,-500.0,0.00054794,120]
[322084289,1712753456797,-500.0,0.00054794,120]
[322084290,1712753456807,-500.0,0.00054794,120]
[322084291,1712753456816,-500.0,0.00054794,120]
[322084292,1712753456826,-500.0,0.00054794,120]
[322084293,1712753456840,-549.16,0.00054794,120]
[322084294,1712753456851,-500.0,0.00054794,120]
[322084295,1712753456861,-167.88255233,0.00054794,120]
[322084296,1712753456988,-500.0,0.00054794,120]
[322084297,1712753456998,-519.77747575,0.00054794,120]
[322084298,1712753457008,-500.0,0.00054794,120]
[322084299,1712753457017,-604.95460895,0.00054794,120]
[322084300,1712753457027,-500.0,0.00054794,120]
[322084301,1712753457037,-500.0,0.00054794,120]
[322084302,1712753457047,-500.0,0.00054794,120]
[322084303,1712753457057,-502.81728151,0.00054794,120]
[322084304,1712753457066,-500.0,0.00054794,120]
[322084305,1712753457076,-3974.91,0.00054794,120]
[322084306,1712753457089,-594.82243651,0.00054794,120]
[322084307,1712753457098,-500.0,0.00054794,120]
[322084308,1712753457108,-501.84991071,0.00054794,120]
[322084309,1712753457116,-172.77282136,0.00054794,120]
[322084310,1712753457126,-338.69925151,0.00054794,120]
[322084311,1712753457135,-500.0,0.00054794,120]
[322084312,1712753457145,-500.0,0.00054794,120]
[322084313,1712753457154,-500.0,0.00054794,120]
[322084314,1712753457163,-502.05428101,0.00054794,120]
[322084315,1712753457172,-500.0,0.00054794,120]
[322084316,1712753457182,-500.0,0.00054794,120]
[322084317,1712753457192,-506.77182915,0.00054794,120]
[322084318,1712753457201,-500.0,0.00054794,120]
[322084319,1712753457210,-502.85941764,0.00054794,120]
[322084320,1712753457220,-500.0,0.00054794,120]
[322084321,1712753457230,-500.0,0.00054794,120]
[322084322,1712753457239,-500.0,0.00054794,120]
[322084323,1712753457249,-503.41443179,0.00054794,120]
[322084324,1712753457259,-500.0,0.00054794,120]
[322084325,1712753457269,-500.0,0.00054794,120]
[322084326,1712753457279,-500.0,0.00054794,120]
[322084327,1712753457288,-500.0,0.00054794,120]
[322084328,1712753457298,-500.0,0.00054794,120]
[322084329,1712753457307,-500.0,0.00054794,120]
[322084330,1712753457317,-500.0,0.00054794,120]
[322084331,1712753457326,-500.0,0.00054794,120]
[322084332,1712753457341,-557.36971831,0.00054794,120]
[322084333,1712753457351,-500.0,0.00054794,120]